[Event "Live Chess"]
[Site "Chess.com"]
[Date "2021.02.28"]
[Round "-"]
[White "Marenduzzo, Ollie"]
[Black "Banerjee, Supratit"]
[Result "1-0"]
[BlackElo "1572"]
[CurrentPosition "6R1/7Q/8/2K5/7k/8/8/8 b - -"]
[ECO "C21"]
[ECOUrl "https://www.chess.com/openings/Center-Game-Accepted-Kieseritzky-Variation-3...c5"]
[EndDate "2021.02.28"]
[EndTime "11:42:26"]
[Link "https://www.chess.com/live/game/8250263667"]
[StartTime "11:22:36"]
[Termination "UtmostTiger won by checkmate"]
[TimeControl "1500+10"]
[Timezone "UTC"]
[UTCDate "2021.02.28"]
[UTCTime "11:22:36"]
[WhiteElo "1492"]

1. e4 { [%clk 0:25:10] } 1... e5 { [%clk 0:25:10] } 2. d4 { [%clk 0:25:14.3] } 2... exd4 { [%clk 0:25:14.9] } 3. Nf3 { [%clk 0:25:22.4] } 3... c5 { [%clk 0:25:20] } 4. c3 { [%clk 0:25:30.1] } 4... Nc6 { [%clk 0:25:27.4] } 5. cxd4 { [%clk 0:25:26.5] } 5... cxd4 { [%clk 0:25:34] } 6. Nxd4 { [%clk 0:25:34.5] } 6... Nxd4 { [%clk 0:25:36] } 7. Qxd4 { [%clk 0:25:42.2] } 7... d6 { [%clk 0:25:37.6] } 8. Bb5+ { [%clk 0:25:47.7] } 8... Bd7 { [%clk 0:25:45.9] } 9. Nc3 { [%clk 0:25:42.2] } 9... Nf6 { [%clk 0:25:43.1] } 10. O-O { [%clk 0:25:44.4] } 10... Be7 { [%clk 0:25:46.4] } 11. Bf4 { [%clk 0:25:27] } 11... O-O { [%clk 0:25:50.3] } 12. Rfe1 { [%clk 0:25:05.5] } 12... Bxb5 { [%clk 0:25:56.9] } 13. Nxb5 { [%clk 0:25:10.2] } 13... a6 { [%clk 0:26:03.2] } 14. Nxd6 { [%clk 0:24:48.6] } 14... Bxd6 { [%clk 0:25:59.4] } 15. Qxd6 { [%clk 0:24:36.6] } 15... Qxd6 { [%clk 0:26:04.9] } 16. Bxd6 { [%clk 0:24:45] } 16... Rfe8 { [%clk 0:26:08.9] } 17. e5 { [%clk 0:24:50.7] } 17... Nd7 { [%clk 0:26:13.3] } 18. Rac1 { [%clk 0:24:39.5] } 18... f6 { [%clk 0:25:54.3] } 19. e6 { [%clk 0:24:37.8] } 19... Nf8 { [%clk 0:25:54.2] } 20. Bxf8 { [%clk 0:24:21.8] } 20... Kxf8 { [%clk 0:25:59.5] } 21. Rc7 { [%clk 0:24:23.8] } 21... b5 { [%clk 0:26:04.3] } 22. g3 { [%clk 0:24:03.9] } 22... a5 { [%clk 0:26:04] } 23. Kg2 { [%clk 0:23:50.6] } 23... Ra6 { [%clk 0:26:01.5] } 24. e7+ { [%clk 0:23:43.7] } 24... Kf7 { [%clk 0:26:02.3] } 25. f4 { [%clk 0:22:53.8] } 25... Re6 { [%clk 0:26:07.6] } 26. Rxe6 { [%clk 0:22:52.7] } 26... Kxe6 { [%clk 0:26:15] } 27. Rc5 { [%clk 0:22:58.3] } 27... Kxe7 { [%clk 0:26:20.7] } 28. Rxb5 { [%clk 0:23:06.5] } 28... Ra8 { [%clk 0:26:26.2] } 29. Rb7+ { [%clk 0:23:06] } 29... Kf8 { [%clk 0:26:33.7] } 30. a3 { [%clk 0:23:13.8] } 30... a4 { [%clk 0:26:39.8] } 31. Kf3 { [%clk 0:23:17] } 31... f5 { [%clk 0:26:41.7] } 32. g4 { [%clk 0:23:22] } 32... fxg4+ { [%clk 0:26:50.1] } 33. Kxg4 { [%clk 0:23:31.3] } 33... Rd8 { [%clk 0:26:57.7] } 34. Rb4 { [%clk 0:23:09.4] } 34... Rd2 { [%clk 0:27:04.4] } 35. h4 { [%clk 0:23:09.6] } 35... g6 { [%clk 0:26:59.3] } 36. Kg5 { [%clk 0:23:00.4] } 36... Rg2+ { [%clk 0:27:02.3] } 37. Kf6 { [%clk 0:23:02.9] } 37... Ke8 { [%clk 0:27:10.1] } 38. Kg7 { [%clk 0:22:45.2] } 38... h5 { [%clk 0:27:11.3] } 39. Rxa4 { [%clk 0:22:46] } 39... Rxb2 { [%clk 0:27:12.8] } 40. Kxg6 { [%clk 0:22:51.3] } 40... Rb5 { [%clk 0:27:17.7] } 41. Ra7 { [%clk 0:22:52.1] } 41... Rb6+ { [%clk 0:27:07.3] } 42. Kxh5 { [%clk 0:22:57] } 42... Kf8 { [%clk 0:27:15.7] } 43. a4 { [%clk 0:23:02.1] } 43... Ke8 { [%clk 0:27:19.8] } 44. a5 { [%clk 0:23:07.2] } 44... Rb5+ { [%clk 0:27:26.9] } 45. Kg4 { [%clk 0:23:10.1] } 45... Kf8 { [%clk 0:27:32.1] } 46. a6 { [%clk 0:23:16.3] } 46... Ra5 { [%clk 0:27:35.1] } 47. h5 { [%clk 0:23:22.9] } 47... Kg8 { [%clk 0:27:43.1] } 48. f5 { [%clk 0:23:27.6] } 48... Ra4+ { [%clk 0:27:50.4] } 49. Kg5 { [%clk 0:23:35.6] } 49... Ra1 { [%clk 0:27:53.4] } 50. Ra8+ { [%clk 0:23:34.5] } 50... Kg7 { [%clk 0:27:52.1] } 51. f6+ { [%clk 0:23:19] } 51... Kf7 { [%clk 0:27:52.6] } 52. Ra7+ { [%clk 0:23:24.8] } 52... Kf8 { [%clk 0:27:57.8] } 53. h6 { [%clk 0:22:55] } 53... Rg1+ { [%clk 0:28:03.2] } 54. Kf4 { [%clk 0:22:46] } 54... Rf1+ { [%clk 0:28:06.8] } 55. Ke3 { [%clk 0:22:49.5] } 55... Rxf6 { [%clk 0:28:14.3] } 56. Ra8+ { [%clk 0:22:47.3] } 56... Ke7 { [%clk 0:28:19.9] } 57. h7 { [%clk 0:22:54.5] } 57... Re6+ { [%clk 0:28:26.3] } 58. Kd4 { [%clk 0:22:57] } 58... Rd6+ { [%clk 0:28:35.1] } 59. Kc5 { [%clk 0:23:01.8] } 59... Rh6 { [%clk 0:28:27] } 60. h8=Q { [%clk 0:23:06.2] } 60... Rxh8 { [%clk 0:28:30.1] } 61. Rxh8 { [%clk 0:23:14.9] } 61... Kd7 { [%clk 0:28:38.6] } 62. a7 { [%clk 0:23:22.4] } 62... Ke6 { [%clk 0:28:47.5] } 63. a8=Q { [%clk 0:23:26.8] } 63... Kf5 { [%clk 0:28:56.1] } 64. Re8 { [%clk 0:23:25.2] } 64... Kf4 { [%clk 0:29:03] } 65. Qb7 { [%clk 0:23:26.5] } 65... Kf5 { [%clk 0:29:09.9] } 66. Qf7+ { [%clk 0:23:34.9] } 66... Kg5 { [%clk 0:29:18.1] } 67. Rg8+ { [%clk 0:23:41.8] } 67... Kh4 { [%clk 0:29:23.8] } 68. Qh7# { [%clk 0:23:50.5] } 1-0

[Event "Live Chess"]
[Site "Chess.com"]
[Date "2021.02.28"]
[Round "-"]
[White "Mitraka, Chrysa"]
[Black "Srivastava, Aarav"]
[Result "0-1"]
[BlackElo "1664"]
[CurrentPosition "r3k2r/1b1p1pp1/p2b3p/1PpP4/4p3/1P1PB3/1P3PPq/R2Q1RK1 w kq -"]
[ECO "B23"]
[ECOUrl "https://www.chess.com/openings/Sicilian-Defense-Closed-Traditional-Line"]
[EndDate "2021.02.28"]
[EndTime "11:26:05"]
[Link "https://www.chess.com/live/game/8249629591"]
[StartTime "11:10:25"]
[Termination "AwesomeTrouble25 won by checkmate"]
[TimeControl "1500+10"]
[Timezone "UTC"]
[UTCDate "2021.02.28"]
[UTCTime "11:10:25"]
[WhiteElo "1174"]

1. e4 { [%clk 0:25:10] } 1... c5 { [%clk 0:25:10] } 2. Nc3 { [%clk 0:25:09.6] } 2... Nc6 { [%clk 0:25:12.9] } 3. Bc4 { [%clk 0:25:06.1] } 3... e5 { [%clk 0:25:16] } 4. d3 { [%clk 0:25:06.6] } 4... a6 { [%clk 0:25:02.5] } 5. Be3 { [%clk 0:25:04.5] } 5... h6 { [%clk 0:24:50.5] } 6. Nf3 { [%clk 0:25:05.6] } 6... Nf6 { [%clk 0:24:55.3] } 7. O-O { [%clk 0:25:08.6] } 7... b5 { [%clk 0:24:56.5] } 8. Bb3 { [%clk 0:25:07] } 8... Bb7 { [%clk 0:25:00.9] } 9. Nd5 { [%clk 0:24:31.4] } 9... Bd6 { [%clk 0:24:35] } 10. Nh4 { [%clk 0:22:36.8] } 10... Nd4 { [%clk 0:22:28.7] } 11. c3 { [%clk 0:20:26.3] } 11... Nxb3 { [%clk 0:22:30] } 12. axb3 { [%clk 0:20:30.3] } 12... Nxd5 { [%clk 0:22:38.2] } 13. exd5 { [%clk 0:20:34.3] } 13... Qxh4 { [%clk 0:22:45] } 14. c4 { [%clk 0:20:00.5] } 14... e4 { [%clk 0:22:47.8] } 15. cxb5 { [%clk 0:16:41.2] } 15... Qxh2# { [%clk 0:22:46.5] } 0-1

[Event "Live Chess"]
[Site "Chess.com"]
[Date "2021.02.28"]
[Round "-"]
[White "Lynn, Angelo"]
[Black "Malhotra, Vedant"]
[Result "1-0"]
[BlackElo "883"]
[CurrentPosition "k4r2/1Q6/3p1n1p/4p1p1/4P2P/3P3P/P1P1K3/1R6 b - -"]
[ECO "C57"]
[ECOUrl "https://www.chess.com/openings/Italian-Game-Traxler-Knight-Sacrifice-Line-5...Bxf2-6.Kf1-Qe7-7.Nxh8"]
[EndDate "2021.02.28"]
[EndTime "11:30:17"]
[Link "https://www.chess.com/live/game/8249630987"]
[StartTime "11:10:14"]
[Termination "Angelolynn123 won by checkmate"]
[TimeControl "1500+10"]
[Timezone "UTC"]
[UTCDate "2021.02.28"]
[UTCTime "11:10:14"]
[WhiteElo "1388"]

1. e4 { [%clk 0:25:10] } 1... e5 { [%clk 0:25:10] } 2. Nf3 { [%clk 0:25:18.1] } 2... Nc6 { [%clk 0:25:16.3] } 3. Bc4 { [%clk 0:25:20.3] } 3... Nf6 { [%clk 0:25:24] } 4. Ng5 { [%clk 0:25:16.7] } 4... Bc5 { [%clk 0:25:31.5] } 5. Nxf7 { [%clk 0:25:14.5] } 5... Bxf2+ { [%clk 0:25:39.3] } 6. Kf1 { [%clk 0:25:05.2] } 6... Qe7 { [%clk 0:25:45.4] } 7. Nxh8 { [%clk 0:24:25.1] } 7... Qc5 { [%clk 0:24:59.8] } 8. d3 { [%clk 0:23:24.2] } 8... d6 { [%clk 0:24:41.2] } 9. h3 { [%clk 0:22:37.3] } 9... Bg3 { [%clk 0:24:42.1] } 10. Qf3 { [%clk 0:21:36.4] } 10... Bh4 { [%clk 0:24:08.1] } 11. Be3 { [%clk 0:21:06.7] } 11... Nd4 { [%clk 0:24:06.5] } 12. Bxd4 { [%clk 0:20:53.9] } 12... Qxd4 { [%clk 0:24:11.4] } 13. Nc3 { [%clk 0:20:19.8] } 13... Bd7 { [%clk 0:23:54.7] } 14. Ke2 { [%clk 0:19:29.1] } 14... O-O-O { [%clk 0:23:49.9] } 15. Nf7 { [%clk 0:18:22.9] } 15... Rf8 { [%clk 0:23:43.5] } 16. g3 { [%clk 0:16:20.4] } 16... b5 { [%clk 0:23:13.7] } 17. Bxb5 { [%clk 0:14:13.2] } 17... Bxb5 { [%clk 0:23:18] } 18. Nxb5 { [%clk 0:14:10.6] } 18... Qxb2 { [%clk 0:23:25] } 19. Nxa7+ { [%clk 0:14:13.6] } 19... Kb7 { [%clk 0:23:31.2] } 20. Rab1 { [%clk 0:14:12] } 20... Qxb1 { [%clk 0:23:35.3] } 21. Rxb1+ { [%clk 0:14:19] } 21... Kxa7 { [%clk 0:23:44.5] } 22. Nxd6 { [%clk 0:14:09.6] } 22... cxd6 { [%clk 0:23:52.1] } 23. gxh4 { [%clk 0:14:17.9] } 23... h6 { [%clk 0:23:55.7] } 24. Qe3+ { [%clk 0:14:25.8] } 24... Ka8 { [%clk 0:24:02.4] } 25. Qb6 { [%clk 0:14:29.8] } 25... g5 { [%clk 0:24:04.6] } 26. Qb7# { [%clk 0:14:36] } 1-0

[Event "Live Chess"]
[Site "Chess.com"]
[Date "2021.02.28"]
[Round "-"]
[White "Gibb, Robert A"]
[Black "McLaurin, Murdo"]
[Result "1/2-1/2"]
[BlackElo "1435"]
[CurrentPosition "8/2b5/2P2p2/5Bpp/5p1k/5K1P/5P2/8 b - -"]
[ECO "A58"]
[ECOUrl "https://www.chess.com/openings/Benko-Gambit-Fully-Accepted-5...Bxa6-6.Nc3-g6"]
[EndDate "2021.02.28"]
[EndTime "11:57:46"]
[Link "https://www.chess.com/live/game/8249023875"]
[StartTime "11:00:15"]
[Termination "Game drawn by agreement"]
[TimeControl "1500+10"]
[Timezone "UTC"]
[UTCDate "2021.02.28"]
[UTCTime "11:00:15"]
[WhiteElo "1370"]

1. d4 { [%clk 0:25:10] } 1... Nf6 { [%clk 0:25:10] } 2. c4 { [%clk 0:25:10.3] } 2... c5 { [%clk 0:25:16.2] } 3. d5 { [%clk 0:25:05.3] } 3... b5 { [%clk 0:25:21.9] } 4. cxb5 { [%clk 0:24:47] } 4... a6 { [%clk 0:25:28.7] } 5. bxa6 { [%clk 0:24:10.6] } 5... Bxa6 { [%clk 0:25:36] } 6. Nc3 { [%clk 0:23:55.6] } 6... g6 { [%clk 0:25:38.1] } 7. g3 { [%clk 0:23:34.5] } 7... d6 { [%clk 0:25:43.2] } 8. Bg2 { [%clk 0:23:33.9] } 8... Bg7 { [%clk 0:25:50.5] } 9. Nf3 { [%clk 0:23:18.6] } 9... O-O { [%clk 0:25:51.6] } 10. O-O { [%clk 0:23:26] } 10... Nbd7 { [%clk 0:25:37.3] } 11. Rb1 { [%clk 0:23:01.8] } 11... Nb6 { [%clk 0:25:34.9] } 12. Re1 { [%clk 0:20:00.5] } 12... Bc4 { [%clk 0:25:17.9] } 13. e4 { [%clk 0:16:33.3] } 13... Bxa2 { [%clk 0:25:05] } 14. Nxa2 { [%clk 0:16:16.7] } 14... Rxa2 { [%clk 0:25:12.3] } 15. Qb3 { [%clk 0:16:02.5] } 15... Ra8 { [%clk 0:25:13.7] } 16. Qc2 { [%clk 0:14:46.4] } 16... Nbd7 { [%clk 0:23:49.2] } 17. Bf4 { [%clk 0:12:55.1] } 17... Qc7 { [%clk 0:18:40.4] } 18. Nd4 { [%clk 0:10:37] } 18... Nh5 { [%clk 0:18:10.1] } 19. Nc6 { [%clk 0:09:48.4] } 19... Nxf4 { [%clk 0:17:53.7] } 20. Nxe7+ { [%clk 0:09:39.6] } 20... Kh8 { [%clk 0:18:01.8] } 21. gxf4 { [%clk 0:09:48.3] } 21... Rae8 { [%clk 0:17:40.3] } 22. Nc6 { [%clk 0:09:51.2] } 22... Nb8 { [%clk 0:17:48.9] } 23. Nxb8 { [%clk 0:08:38.8] } 23... Rxb8 { [%clk 0:17:55.6] } 24. b4 { [%clk 0:08:19.5] } 24... c4 { [%clk 0:17:36.2] } 25. Rec1 { [%clk 0:07:33] } 25... c3 { [%clk 0:17:24.9] } 26. e5 { [%clk 0:06:18.4] } 26... dxe5 { [%clk 0:17:32.3] } 27. Qxc3 { [%clk 0:06:08.2] } 27... Qxc3 { [%clk 0:17:38.5] } 28. Rxc3 { [%clk 0:06:15.7] } 28... exf4 { [%clk 0:17:44.8] } 29. Rc4 { [%clk 0:05:55] } 29... g5 { [%clk 0:17:00.8] } 30. b5 { [%clk 0:05:39.9] } 30... Rfd8 { [%clk 0:17:03.8] } 31. Rc7 { [%clk 0:05:36.7] } 31... Kg8 { [%clk 0:16:45.6] } 32. b6 { [%clk 0:05:11.9] } 32... Be5 { [%clk 0:16:45.1] } 33. Re7 { [%clk 0:04:22.5] } 33... Bd6 { [%clk 0:16:29.3] } 34. Ra7 { [%clk 0:03:26.4] } 34... Bc5 { [%clk 0:16:25.1] } 35. Ra6 { [%clk 0:03:29.5] } 35... Rd6 { [%clk 0:16:25.4] } 36. Ra5 { [%clk 0:03:19.1] } 36... Rbxb6 { [%clk 0:15:51.6] } 37. Ra8+ { [%clk 0:01:46.6] } 37... Kg7 { [%clk 0:15:47.1] } 38. Rxb6 { [%clk 0:01:44] } 38... Bxb6 { [%clk 0:15:21.8] } 39. Rc8 { [%clk 0:01:34.9] } 39... Bd8 { [%clk 0:14:37.4] } 40. Rc6 { [%clk 0:01:06.2] } 40... Rxc6 { [%clk 0:14:31] } 41. dxc6 { [%clk 0:01:14.3] } 41... Bc7 { [%clk 0:14:40.5] } 42. Bd5 { [%clk 0:01:17.4] } 42... h6 { [%clk 0:14:47.1] } 43. h3 { [%clk 0:01:22.7] } 43... Kf6 { [%clk 0:14:56.2] } 44. Kg2 { [%clk 0:01:26.4] } 44... Kg6 { [%clk 0:15:00.2] } 45. Kf3 { [%clk 0:01:30] } 45... f6 { [%clk 0:15:09.2] } 46. Be4+ { [%clk 0:01:09] } 46... Kh5 { [%clk 0:15:04.9] } 47. Bf5 { [%clk 0:01:13.7] } 47... Kh4 { [%clk 0:14:22.2] } 48. Kg2 { [%clk 0:00:52.1] } 48... Kh5 { [%clk 0:13:47.1] } 49. Kf3 { [%clk 0:00:50.1] } 49... Kh4 { [%clk 0:13:20.7] } 50. Kg2 { [%clk 0:00:45.5] } 50... h5 { [%clk 0:12:09.5] } 51. Kf3 { [%clk 0:00:34.6] } 51... Bb6 { [%clk 0:11:45] } 52. Be6 { [%clk 0:00:35.3] } 52... Bc7 { [%clk 0:11:05.9] } 53. Bf5 { [%clk 0:00:40.6] } 1/2-1/2

[Event "Live Chess"]
[Site "Chess.com"]
[Date "2021.02.28"]
[Round "-"]
[White "Lazell, Ruben"]
[Black "Snow, Ben"]
[Result "1-0"]
[BlackElo "1362"]
[CurrentPosition "2rr3k/1b2bpq1/p3pNp1/1p6/8/P2B3Q/2P2PPP/3R2RK b - -"]
[ECO "B20"]
[ECOUrl "https://www.chess.com/openings/Sicilian-Defense-Mengarini-Variation-2...Nc6-3.b4"]
[EndDate "2021.02.28"]
[EndTime "11:37:58"]
[Link "https://www.chess.com/live/game/8249062015"]
[StartTime "11:02:39"]
[Termination "rubenlazell won by resignation"]
[TimeControl "1500+10"]
[Timezone "UTC"]
[UTCDate "2021.02.28"]
[UTCTime "11:02:39"]
[WhiteElo "1409"]

1. e4 { [%clk 0:25:10] } 1... c5 { [%clk 0:25:10] } 2. a3 { [%clk 0:25:09.8] } 2... Nc6 { [%clk 0:25:17] } 3. b4 { [%clk 0:25:04] } 3... a6 { [%clk 0:24:27.7] } 4. bxc5 { [%clk 0:24:47.7] } 4... e6 { [%clk 0:23:50.5] } 5. d4 { [%clk 0:24:35.5] } 5... Nf6 { [%clk 0:22:20.8] } 6. Nd2 { [%clk 0:23:49.9] } 6... Nxd4 { [%clk 0:21:39.7] } 7. Bb2 { [%clk 0:23:36.7] } 7... Bxc5 { [%clk 0:21:28.8] } 8. Bd3 { [%clk 0:23:16.5] } 8... d6 { [%clk 0:20:05.4] } 9. Ngf3 { [%clk 0:23:13.1] } 9... Nxf3+ { [%clk 0:19:33.7] } 10. Nxf3 { [%clk 0:22:53.3] } 10... O-O { [%clk 0:18:55.2] } 11. O-O { [%clk 0:22:57.3] } 11... b5 { [%clk 0:18:22.6] } 12. e5 { [%clk 0:22:33.5] } 12... dxe5 { [%clk 0:17:31] } 13. Nxe5 { [%clk 0:22:35.9] } 13... Bb7 { [%clk 0:17:25.8] } 14. Ng4 { [%clk 0:22:32] } 14... Be7 { [%clk 0:14:47.7] } 15. Kh1 { [%clk 0:21:40.5] } 15... Rc8 { [%clk 0:12:59.5] } 16. Qe2 { [%clk 0:21:11.8] } 16... Qd5 { [%clk 0:11:45.4] } 17. Rg1 { [%clk 0:20:48.2] } 17... Kh8 { [%clk 0:08:42.9] } 18. Rad1 { [%clk 0:19:12.5] } 18... Qa2 { [%clk 0:08:01.1] } 19. Nxf6 { [%clk 0:18:06.2] } 19... Qxb2 { [%clk 0:07:29.8] } 20. Nxh7 { [%clk 0:18:10.7] } 20... Rfd8 { [%clk 0:07:01] } 21. Qh5 { [%clk 0:18:13.6] } 21... g6 { [%clk 0:05:59.9] } 22. Qh3 { [%clk 0:17:13.2] } 22... Qg7 { [%clk 0:05:39.8] } 23. Nf6+ { [%clk 0:17:12.1] } 1-0

[Event "Live Chess"]
[Site "Chess.com"]
[Date "2021.02.28"]
[Round "-"]
[White "Fay, Craig"]
[Black "Howarth, Ned"]
[Result "1-0"]
[BlackElo "1447"]
[CurrentPosition "8/8/8/1K6/1p6/8/kP3R2/8 w - -"]
[ECO "B22"]
[ECOUrl "https://www.chess.com/openings/Sicilian-Defense-Alapin-Variation-2...e6-3.d4"]
[EndDate "2021.02.28"]
[EndTime "12:07:46"]
[Link "https://www.chess.com/live/game/8249076273"]
[StartTime "11:03:30"]
[Termination "Craig_F23 won by resignation"]
[TimeControl "1500+10"]
[Timezone "UTC"]
[UTCDate "2021.02.28"]
[UTCTime "11:03:30"]
[WhiteElo "1523"]

1. e4 { [%clk 0:25:10] } 1... c5 { [%clk 0:25:10] } 2. c3 { [%clk 0:25:16.1] } 2... e6 { [%clk 0:25:10] } 3. d4 { [%clk 0:25:22] } 3... cxd4 { [%clk 0:25:15.3] } 4. cxd4 { [%clk 0:25:29.1] } 4... Bb4+ { [%clk 0:25:21.6] } 5. Nc3 { [%clk 0:25:12.4] } 5... Ne7 { [%clk 0:25:28] } 6. Bd3 { [%clk 0:25:10.3] } 6... O-O { [%clk 0:25:32.3] } 7. Nf3 { [%clk 0:25:14.3] } 7... b6 { [%clk 0:24:57.7] } 8. O-O { [%clk 0:25:13.4] } 8... Ba6 { [%clk 0:24:44] } 9. Bxa6 { [%clk 0:22:50.7] } 9... Nxa6 { [%clk 0:24:51] } 10. Nb5 { [%clk 0:22:58.1] } 10... d5 { [%clk 0:24:51.4] } 11. a3 { [%clk 0:21:27.6] } 11... Bd6 { [%clk 0:24:43.6] } 12. e5 { [%clk 0:21:35] } 12... Bb8 { [%clk 0:24:01.4] } 13. Bg5 { [%clk 0:20:27.5] } 13... Nc7 { [%clk 0:24:06.6] } 14. Nc3 { [%clk 0:20:11.6] } 14... Ne8 { [%clk 0:23:42.9] } 15. Rc1 { [%clk 0:17:54] } 15... f6 { [%clk 0:23:48.5] } 16. Bh4 { [%clk 0:17:44.8] } 16... fxe5 { [%clk 0:23:52.2] } 17. dxe5 { [%clk 0:17:23.3] } 17... Qd7 { [%clk 0:23:41] } 18. Bxe7 { [%clk 0:13:22.5] } 18... Qxe7 { [%clk 0:23:44.9] } 19. Nxd5 { [%clk 0:13:31.5] } 19... Qf7 { [%clk 0:22:33.2] } 20. Ne3 { [%clk 0:12:40] } 20... Nc7 { [%clk 0:22:33.3] } 21. Qd4 { [%clk 0:12:04.1] } 21... Nb5 { [%clk 0:20:14.7] } 22. Qe4 { [%clk 0:12:11] } 22... Nc7 { [%clk 0:20:19.1] } 23. Ng5 { [%clk 0:11:49.3] } 23... Qg6 { [%clk 0:19:50] } 24. Qxg6 { [%clk 0:11:57.8] } 24... hxg6 { [%clk 0:19:58.3] } 25. f4 { [%clk 0:11:57.1] } 25... a6 { [%clk 0:19:02.3] } 26. Rc6 { [%clk 0:11:57.5] } 26... b5 { [%clk 0:19:01.1] } 27. Nxe6 { [%clk 0:11:50.5] } 27... Nxe6 { [%clk 0:18:53] } 28. Rxe6 { [%clk 0:12:00.4] } 28... Ba7 { [%clk 0:19:00.3] } 29. Rf3 { [%clk 0:11:19.6] } 29... g5 { [%clk 0:16:07.1] } 30. Kf1 { [%clk 0:10:34.7] } 30... Bxe3 { [%clk 0:14:42.1] } 31. Rxe3 { [%clk 0:10:44.6] } 31... gxf4 { [%clk 0:14:50.6] } 32. Rc3 { [%clk 0:09:40.7] } 32... Rfd8 { [%clk 0:13:59.9] } 33. Rd6 { [%clk 0:08:41.8] } 33... Re8 { [%clk 0:13:57.9] } 34. e6 { [%clk 0:08:41.1] } 34... Ra7 { [%clk 0:13:53] } 35. Kf2 { [%clk 0:08:17.3] } 35... Rae7 { [%clk 0:13:57.6] } 36. Rcc6 { [%clk 0:07:31.8] } 36... a5 { [%clk 0:14:01.9] } 37. Kf3 { [%clk 0:07:35.9] } 37... g5 { [%clk 0:14:10.1] } 38. h4 { [%clk 0:07:02.7] } 38... gxh4 { [%clk 0:13:49.6] } 39. Kxf4 { [%clk 0:07:11.2] } 39... Kg7 { [%clk 0:13:53.6] } 40. Rd7 { [%clk 0:05:51.4] } 40... Kf6 { [%clk 0:13:40.7] } 41. Rxe7 { [%clk 0:05:59.4] } 41... Kxe7 { [%clk 0:13:48] } 42. Ke5 { [%clk 0:04:33.4] } 42... Rg8 { [%clk 0:13:28.6] } 43. Rc7+ { [%clk 0:04:41.2] } 43... Kd8 { [%clk 0:13:35] } 44. Kd6 { [%clk 0:04:50.2] } 44... Rg6 { [%clk 0:12:58.3] } 45. Rh7 { [%clk 0:04:09.6] } 45... Kc8 { [%clk 0:11:47.4] } 46. Rh8+ { [%clk 0:04:09.9] } 46... Kb7 { [%clk 0:11:55.3] } 47. Kd7 { [%clk 0:03:46.8] } 47... Rxg2 { [%clk 0:11:45] } 48. e7 { [%clk 0:02:58.3] } 48... Rd2+ { [%clk 0:11:52.9] } 49. Ke8 { [%clk 0:03:04.2] } 49... Re2 { [%clk 0:08:19.6] } 50. Rxh4 { [%clk 0:02:51] } 50... Kc7 { [%clk 0:06:10.6] } 51. Rf4 { [%clk 0:02:57.6] } 51... Kd6 { [%clk 0:05:04.1] } 52. Rf7 { [%clk 0:02:24.7] } 52... b4 { [%clk 0:03:47.7] } 53. axb4 { [%clk 0:02:05] } 53... axb4 { [%clk 0:03:56.3] } 54. Kd8 { [%clk 0:01:42.4] } 54... Kc5 { [%clk 0:03:14.3] } 55. e8=Q { [%clk 0:01:35.6] } 55... Rxe8+ { [%clk 0:03:22.4] } 56. Kxe8 { [%clk 0:01:45.5] } 56... Kc4 { [%clk 0:03:31.5] } 57. Rf2 { [%clk 0:01:54] } 57... Kb3 { [%clk 0:03:40] } 58. Kd7 { [%clk 0:02:02.6] } 58... Ka2 { [%clk 0:03:48.8] } 59. Kc6 { [%clk 0:02:09.9] } 59... Kb3 { [%clk 0:03:50.3] } 60. Kb5 { [%clk 0:02:18.6] } 60... Ka2 { [%clk 0:03:58.6] } 1-0